Cogmind - Beta 15 @@@ ROGUE MODE // 2025.05.10 @ 21:24:28 Player: Quartz Result: Destroyed by D-53 Grenadier with Mini Grenade Launcher Performance ------------- Evolutions (0) 0 Regions Visited (2) 400 Robots Destroyed (10) 50 Value Destroyed (151) 151 Prototype IDs (0) 0 Alien Tech Used (0) 0 Bonus (0) 0 TOTAL SCORE: 601 Bonus ------- None Cogmind --------- Core Integrity 0/250 Matter 112/300 Energy 80/100 System Corruption 0% Temperature Cool (0) Movement Core (400) Ox7 Location -10/Mines Parts ------- > --- POWER (1) -------- (None) > --- PROPULSION (2) --- (None) > --- UTILITY (2) ------ Large Storage Unit > --- WEAPON (2) ------- Light EM Pulse Cannon > --- INVENTORY (15) --- Ion Engine Compact Wheel Light EM Pulse Cannon Improved Light Cannon Improved Light Cannon Rocket Launcher Mini Grenade Launcher Peak State ------------ > --- POWER ------------ Ion Engine > --- PROPULSION ------- Light Treads Light Treads > --- UTILITY ---------- Large Storage Unit > --- WEAPON ----------- Light EM Pulse Cannon Improved Light Cannon > --- INVENTORY -------- Ion Engine Compact Wheel Small Laser Light EM Pulse Cannon Improved Light Cannon Mini Grenade Launcher Mini Grenade Launcher [Rating: 9] Favorites ----------- Power Ion Engine Engine Ion Engine Propulsion Light Treads Treads Light Treads Utility Large Storage Unit Storage Large Storage Unit Weapon Improved Light Cannon Energy Gun Small Laser Energy Cannon Light EM Pulse Cannon Ballistic Gun Assault Rifle Ballistic Cannon Improved Light Cannon Launcher Mini Grenade Launcher Build | -11 -10 -10 ------- Run | Yrd Mat Min Slots Evolved . | . . . Power . | . . . Propulsion . | . . . Utility . | . . . Weapon . | . . . Parts Attached 15 | 7 5 3 Power 1 | 1 . . Engine 1 | 1 . . Core . | . . . Reactor . | . . . Propulsion 2 | 2 . . Treads 2 | 2 . . Leg . | . . . Wheel . | . . . Hover . | . . . Flight . | . . . Utility 3 | 1 2 . Device . | . . . Storage 3 | 1 2 . Processor . | . . . Hackware . | . . . Protection . | . . . Artifact . | . . . Weapon 9 | 3 3 3 Energy Gun 2 | 2 . . Energy Cannon 1 | . 1 . Ballistic Gun 1 | 1 . . Ballistic Cannon 3 | . 2 1 Launcher 2 | . . 2 Special Weapon . | . . . Impact Weapon . | . . . Slashing Weapon . | . . . Piercing Weapon . | . . . Special Melee Weapon . | . . . Unidentified Prototypes . | . . . Parts Lost 5 | . . 5 Power 1 | . . 1 Propulsion 2 | . . 2 Utility . | . . . Weapon 2 | . . 2 Highest Loss Streak 3 | . . 3 To Critical Strikes . | . . . Average Backups 6 | 1 6 8 Power . | . 1 1 Propulsion . | . . 1 Utility . | . . . Weapon 4 | 1 4 6 Tool/Special . | . . . Unused Backups 6 | 2 . 4 Power 1 | . . 1 Propulsion 3 | 2 . 1 Utility . | . . . Weapon 2 | . . 2 Tool/Special . | . . . Average Slot Usage (%) 77 | . 85 72 Engine 14 | . 14 14 Treads 20 | . 28 15 Storage 14 | . 14 14 Energy Gun 2 | . 5 . Energy Cannon 2 | . 6 . Ballistic Gun 2 | . 5 . Ballistic Cannon 19 | . 10 25 Launcher 1 | . . 2 Peak Build Rating 9 | 6 9 9 Average Rating 7 | 4 7 8 On Entrance 5 | . 6 9 Naked Turns . | . . . Heaviest Build 33 | 13 33 33 Greatest Support 40 | 40 40 40 Greatest Overweight (x) 10 | . . 10 Average Overweight (x) 1 | . . 1 Largest Inventory Capacity 15 | 8 15 15 Average Capacity 14 | 6 14 15 Most Carried 9 | 5 9 9 Average Carried 6 | 1 6 8 Final Capacity 15 | 8 15 15 Final Carried 8 | 2 8 7 Class Distribution -------------------- 100% | Mutant Dominant Class ---------------- Mutant | -10/Materials Mutant | -10/Mines Resources | -11 -10 -10 ----------- Run | Yrd Mat Min Matter Collected 547 | 270 18 259 Remotely . | . . . Salvage Created 316 | 70 42 204 Parts 15 | 2 3 10 Haulers Intercepted . | . . . Recyclers Shooed . | . . . Parts Field Recycled . | . . . Retrieved Matter . | . . . Parts Self-Destructed . | . . . Prevented . | . . . Kills | -11 -10 -10 ------- Run | Yrd Mat Min Combat Hostiles Destroyed 20 | . 2 18 Cannons 3 | . 2 1 AOE 17 | . . 17 Classes Destroyed 5 | 1 2 2 Recycler 4 | 1 . 3 Watcher 1 | . 1 . Swarmer 3 | . . 3 Grunt 2 | . 2 . Assembled 15 | . . 15 Best Kill Streak 14 | 1 2 14 Combat Bots Only 14 | . 2 14 Max Kills in Single Turn 6 | 1 1 6 Gunslinging . | . . . Exploded 6 | . . 6 Melee . | . . . Uniques/NPCs Destroyed . | . . . Combat | -11 -10 -10 -------- Run | Yrd Mat Min Hostile Shots Fired 52 | . 16 36 Missed 6 | . 1 5 Hits 46 | . 15 31 Projectile 46 | . 15 31 AOE 12 | . . 12 Damage Taken 944 | . 198 746 Core 256 | . 11 245 Absorbed by Shields . | . . . Core Remaining (%) 100 | 100 . . Volleys Fired 32 | 1 12 19 Largest 2 | 2 2 2 Hottest 89 | 60 89 66 Shots Fired 63 | 2 23 38 Gun 2 | 2 . . Cannon 41 | . 23 18 Launcher 20 | . . 20 Special . | . . . Kinetic 40 | 1 21 18 Thermal 1 | 1 . . Explosive 20 | . . 20 Electromagnetic 2 | . 2 . Robot Hit Streak 6 | 2 5 6 Robot Miss Streak 3 | . 2 3 Penetration Max . | . . . Secondary Targets . | . . . Shots Hit Robots 34 | 2 15 17 Core Hits 43 | 2 4 37 Critical Kills . | . . . Critical Parts Destroyed . | . . . Critical Strikes 1 | . 1 . Blast 1 | . 1 . Melee Attacks . | . . . Impact . | . . . Slashing . | . . . Piercing . | . . . Sneak Attacks . | . . . Combat Hostiles . | . . . Follow-up Attacks . | . . . Damage Inflicted 1844 | 22 318 1504 Guns 21 | 21 . . Cannons 567 | . 318 249 Explosions 1253 | . . 1253 Melee . | . . . Ramming 3 | 1 . 2 Kinetic 541 | 10 282 249 Thermal 11 | 11 . . Explosive 1253 | . . 1253 Electromagnetic 36 | . 36 . Impact . | . . . Slashing . | . . . Piercing . | . . . Highest Corruption . | . . . Average Corruption . | . . . Corruption Purged . | . . . Corruption Blocked . | . . . Overload Shots . | . . . Overflow Damage 53 | . 15 38 Projectiles 32 | . 15 17 Explosions 21 | . . 21 Melee . | . . . Knockbacks 7 | . 5 2 Impact . | . . . Kinetic 6 | . 4 2 Secondary 1 | . 1 . Self-Inflicted Damage 79 | . . 79 Shots 3 | . . 3 Rammed 3 | 1 1 1 Targets Rammed 3 | 1 1 1 Kicked . | . . . Crushed . | . . . Highest Temperature 153 | . 153 18 Average Temperature 49 | . 74 6 Received Heat Transfer 111 | . 111 . Siege Activations . | . . . Martial Activations . | . . . Shielding Activations . | . . . Robots Disrupted . | . . . Combat Hostiles . | . . . Robots Corrupted . | . . . Combat Hostiles . | . . . Parts Fried . | . . . Impact Corruptions . | . . . Robots Melted . | . . . Combat Hostiles . | . . . Parts Melted . | . . . Heat Transferred 25 | 25 . . Parts Sabotaged . | . . . Parts Stolen . | . . . Parts Stripped . | . . . Power Chain Reactions . | . . . Alert | -11 -10 -10 ------- Run | Yrd Mat Min Maximum Alert Level . | . . . Low Security (%) 100 | 100 100 100 Level 1 . | . . . Level 2 . | . . . Level 3 . | . . . Level 4 . | . . . Level 5 . | . . . High Security . | . . . Max Security . | . . . Peak Influence 104 | 5 43 104 Initial 13 | . . 13 Average 11 | . 2 19 Influence Increases 238 | 5 69 164 Destroy 0b10 Robot/C 100 | . 40 60 Destroy 0b10 Robot/NC 25 | 5 5 15 Destroy Leader 22 | . 12 10 Successful Hack 11 | . 11 . Destroy Structure 80 | . 1 79 Influence Decreases 238 | 5 34 199 Entered New Map 22 | . . 22 Time Decay 196 | 5 34 157 Lost Part 20 | . . 20 Squads Dispatched . | . . . Investigation . | . . . Extermination . | . . . Reinforcement . | . . . Assault . | . . . Garrison . | . . . Intercept . | . . . Searches Triggered . | . . . Construction Impeded . | . . . Haulers Reinforced . | . . . Active Scanning Responses . | . . . Cargo Convoy Interrupts . | . . . Stealth | -11 -10 -10 --------- Run | Yrd Mat Min Distress Signals . | . . . Communications Jammed . | . . . Distress Signals . | . . . Times Spotted 25 | . 4 21 Peak Tracking Total 14 | . 2 14 Tactical Retreats 1 | . . 1 Traps | -11 -10 -10 ------- Run | Yrd Mat Min Traps Triggered . | . . . Indirectly . | . . . Trap Hack Attempts . | . . . Triggered . | . . . Disarmed . | . . . Reprogrammed . | . . . Reused . | . . . Traps Extracted . | . . . Installed . | . . . Triggered . | . . . Machines | -11 -10 -10 ---------- Run | Yrd Mat Min Machines Disabled . | . . . Max in Single Turn . | . . . Machines Repaired . | . . . Machines Dismantled . | . . . Machines Sabotaged . | . . . Overloaded Fab Kills . | . . . Hacking | -11 -10 -10 --------- Run | Yrd Mat Min Machines Accessed 1 | . 1 . Terminals 1 | . 1 . Fabricators . | . . . Repair Stations . | . . . Recycling Units . | . . . Scanalyzers . | . . . Garrison Access . | . . . Total Hacks 8 | . 8 . Successful 3 | . 3 . Failed 5 | . 5 . Catastrophic 1 | . 1 . Database Lockouts . | . . . Manual 8 | . 8 . Terminals 8 | . 8 . Fabricators . | . . . Repair Stations . | . . . Recycling Units . | . . . Scanalyzers . | . . . Garrison Access . | . . . Terminal Hacks 2 | . 2 . Robot Analysis 2 | . 2 . Fabricator Hacks . | . . . Repair Station Hacks . | . . . Recycling Unit Hacks . | . . . Scanalyzer . | . . . Garrison Access Hacks . | . . . Unauthorized Hacks 1 | . 1 . Terminals 1 | . 1 . Botnet 1 | . 1 . Fabricators . | . . . Repair Stations . | . . . Recycling Units . | . . . Scanalyzers . | . . . Garrison Access . | . . . Data Cores Recovered . | . . . Used . | . . . Hacking Detections 1 | . 1 . Full Trace Events . | . . . Feedback Events . | . . . Feedback Blocked . | . . . Robot Schematics Acquired . | . . . Robots Built . | . . . Authchips . | . . . Time . | . . . Total Robot Build Rating . | . . . Part Schematics Acquired . | . . . Parts Built . | . . . Authchips . | . . . Time . | . . . Total Part Build Rating . | . . . Parts Repaired . | . . . Time . | . . . Parts Recycled . | . . . Recycled Matter . | . . . Retrieved Matter . | . . . Retrieved Components . | . . . Parts Scanalyzed . | . . . Part Schematics Acquired . | . . . Parts Damaged . | . . . Bothacking | -11 -10 -10 ------------ Run | Yrd Mat Min Used RIF Installer . | . . . Robots Hacked . | . . . Non-combat . | . . . Combat . | . . . Robot Hacks Applied . | . . . Relay Couplers Released . | . . . Fabnet Peak Effective % . | . . . Robots Rewired . | . . . Allies Hacked . | . . . Hacks Repelled . | . . . Allies | -11 -10 -10 -------- Run | Yrd Mat Min Total Allies . | . . . Largest Group . | . . . Highest-Rated Group . | . . . Highest-Rated Ally . | . . . Total Orders . | . . . Ally Attacks . | . . . Total Damage . | . . . Kills . | . . . Allies Corrupted . | . . . Allies Melted . | . . . Intel | -11 -10 -10 ------- Run | Yrd Mat Min Active Infowar (turns) . | . . . Robot Analysis Total 2 | . 2 . Derelict Logs Recovered . | . . . Drone Launches . | . . . Drone Recoveries . | . . . Exploration | -11 -10 -10 ------------- Run | Yrd Mat Min Turns Passed 1414 | 109 527 778 Spaces Moved 585 | 68 220 297 Core 79 | 20 . 59 Treads 506 | 48 220 238 Legs . | . . . Wheels . | . . . Hover . | . . . Flight . | . . . Fastest Speed 50 | 50 160 160 Average Speed 195 | 127 160 237 Slowest Speed 550 | 160 160 550 Overloaded Moves . | . . . Propulsion Burnouts . | . . . Robots Hopped . | . . . Potential Cave-ins . | . . . Cave-ins Triggered . | . . . Exploration Rate (%) 37 | 5 30 77 Regions Visited 2 Branch Regions 1 Pre-discovered Areas . | . . . Known Exits Taken . | . . . Unknown Exits Taken 2 | 1 1 . Scrap Searched 1 | . . 1 Spaces Dug . | . . . Terrain Destroyed 147 | . . 147 Melee . | . . . Projectile 2 | . . 2 AOE 145 | . . 145 Terrain Rammed . | . . . Walls Destroyed . | . . . Machines Disabled . | . . . Actions | -11 -10 -10 --------- Run | Yrd Mat Min Total 789 | 88 373 328 Wait 120 | . 120 . Move 583 | 67 219 297 Hop . | . . . Pick Up 22 | 10 11 1 Fast Attach . | . . . Attach 9 | 6 2 1 Detach . | . . . Swap 12 | 1 3 8 Drop 8 | 2 5 1 Fire 32 | 1 12 19 Melee . | . . . Ram . | . . . Kick . | . . . Crush 3 | 1 1 1 Escape Stasis . | . . . Rewire . | . . . Trap . | . . . Miscellaneous . | . . . Route ------- -11/Scrapyard -10/Materials -10/Mines (discovered 1 exit: [*Mat]) History --------- Turn | Location | Event 11 | -11/Scrapyard | Discovered new exit (range 16) 110 | -11/Scrapyard | Entered Materials 325 | -10/Materials | Build established: Mutant 534 | -10/Materials | Discovered new exit (range 16) 637 | -10/Materials | Entered Mines 852 | -10/Mines | Discovered new exit (range 16) 1024 | -10/Mines | Assembled infested the area 1086 | -10/Mines | Destroyed 14 combat bots 1345 | -10/Mines | Received a Rocket Launcher from a helpful Derelict 1410 | -10/Mines | Core integrity fell below 50% 1415 | -10/Mines | Core integrity fell below 20% 1415 | -10/Mines | Destroyed by D-53 Grenadier with Mini Grenade Launcher Last Messages --------------- 01344_ 9T-66D(g): "Need a small hole in the wall? Leave that to the mining laser wimps, I say!" 01345_ 9T-66D(g): "Would you like a rocket launcher? I know I would if I were you, so I'm going to lend you mine." 01345_ 9T-66D(g) slips back into the shadows. 01360_ Acquired Rocket Launcher. 01361_ Dropped Mni. Grenade Launcher. 01366_ U-05 Engineer builds a Wall. 01384_ Acquired 89 matter. 01386_ U-05 Engineer builds a Wall. 01406_ D-53 Grenadier knocked back. 01408_ U-05 Engineer lays Concrete. 01411_ Ion Engine destroyed. 01412_ U-05 Engineer lays Concrete. 01412_ Imp. Light Cannon destroyed. 01413_ U-05 Engineer lays Concrete. 01413_ Imp. Light Cannon destroyed. 01414_ U-05 Engineer lays Concrete. 01415_ The unstable cave ceiling collapses. 01415_ U-05 Engineer lays Concrete. Map ----- +----------------------------------------------------+ | ??## ##??## ##????????????# ## # #?# | | ??# #### =[###??????????# # #?# | | ??# ## ##?####????### ## # ##?# | | ?## ### ##????## # ##??# | | ## ## *= ####### ## # ###???# | | # #### * * ###?????# | | ##??# #?????# | | ##???# ### ! ######## #????# | | #????# ### ##?## =%##??????# #???# | | ##???## ##?####???####%=#???????# #??# | | ####?####????????????# #???????# #??### | | ##??????????????## #??????? #????? | | ###????????????# #??????? ##????? | | #?????? #??????? ##?????? | | ### #????# #?????? #??????? | | ##??# ?????# ?????? #??????? | | ####? ?????# %k ?????? #??????? | | #?? #### ??????## d##?????? #??????? | | ### #???##???????????#;d ##????? ##??????? | | ##?# #?????????????????# #????? ##???????? | | #??# #????????????????## ##???? ?????????? | | #### #???????????????## ##? ???????????????? | | #?????????????### # ?????????????????? | | #####?????????????# #??????????????????? | | #?????????????????# #??????????????????? | | #?????????????????# @ #??????????????????? | | #?????????????????# # #??????????????????? | | #?????????????????# #??????????????????? | | #?????????????????# ##??????????????????? | | #############????## u ##???????????????????? | | #????# ] ###????????????????????? | | ## #??????????????????????? | | ### ####### #?# #??????????????????????? | | #?# #?????###########?## #??????????????????????? | | ??# #???????????#####?## ##?????????????????????? | | ??# #?????????????????## #?????????????????????? | | ??# #????????????####??###%#?????????????????????? | | ??# #???????????## ##?? # #?????????????????????? | | ??# #??#####????# ### #%#?????????????????????? | | ??# #### # ###?## ## #?????????????????????? | | ??# ## ### ## #?????????????????????? | | ?## # # # #?# #?????????????????????? | | ?# #### #?# #?????????????????????? | | ?# # # ##### " #??# #?????????????????????? | | ?# %= #### #?????????????????????? | | ?# # # #### #?????????????????????? | | ?## # # # # #?????????????????????? | | ??# # # ## ######?????????????????????? | | ??### #### ##??????????????????????????? | | ????##################???????????????????????????? | +----------------------------------------------------+ Best States ------------- Heat Dissipation 25 Energy Generation 10 Energy Capacity 250 Matter Stores 300 Matter Capacity 300 Sight Range 16 Terrain Scan Density 10 Evasion (%) 50 Recoil Reduction 2 Item Schematics ----------------- None Robot Schematics ------------------ None Fabricated ------------ Nothing Repaired ---------- Nothing Alien Tech Used ----------------- None Achievements -------------- Exterminator Challenges ------------ None Game ------ Seed BiometalShrapnelFocus Manual? 0 Play Time 00:06:58 Cumulative 42.0 hours Start 2025.05.10 @ 21:17:35 End 2025.05.10 @ 21:24:28 Sessions 1 Manual Loads 0 Difficulty Rogue Special Mode None Game No. 68 Rogue 68 Adventurer 0 Explorer 0 Win Type - Total 0 Types 0/0/0/0/0/0/0/0/0/0 Lore% 24 Gallery% 26 Achievement% 26 Wizard Run 0 Options --------- Layout 0 ASCII 0 Keyboard 0 Movement Arrows Keybinds 0 Fullscreen 1 Font 18/Smallcaps Map View 76x50 Zoom Use 0% Tactical HUD 1 Map Filters NONE Filters NONE Steam 1 RUN: de1ec1e8-9e41-4a12-993e-8823ca96e00a